[Event "Titled Tuesday Blitz April 19 Late 2022"]
[White "Kanyamarala, Tarun"]
[Black "Hasangatin, Ramil"]
[WhiteFideId "45004714"]
[BlackFideId "4122160"]
[WhiteElo "2532"]
[BlackElo "2679"]
[Result "0-1"]
[Round "06"]
[TimeControl "180+1"]
[Date "2022.04.19"]
[WhiteClock "0:00:05"]
[BlackClock "0:00:10"]

1. d4 {[%clk 0:02:54]}  Nf6 {[%clk 0:02:07]} 2. Nc3 {[%clk 0:02:53]}  d5 {[%clk 0:02:07]} 3. Bf4 {[%clk 0:02:52]}  c5 {[%clk 0:02:07]} 4. e4 {[%clk 0:02:52]}  e6 {[%clk 0:01:59]} 5. Nb5 {[%clk 0:02:32]}  Na6 {[%clk 0:01:55]} 6. exd5 {[%clk 0:02:25]}  Nxd5 {[%clk 0:01:54]} 7. Bg3 {[%clk 0:02:25]}  Be7 {[%clk 0:01:49]} 8. Nf3 {[%clk 0:02:20]}  O-O {[%clk 0:01:48]} 9. c3 {[%clk 0:02:18]}  cxd4 {[%clk 0:01:31]} 10. Nbxd4 {[%clk 0:02:17]}  Nc5 {[%clk 0:01:29]} 11. Be2 {[%clk 0:02:03]}  Qb6 {[%clk 0:01:27]} 12. Qc2 {[%clk 0:01:55]}  Bd7 {[%clk 0:01:22]} 13. Ne5 {[%clk 0:01:55]}  Rad8 {[%clk 0:01:22]} 14. Nc4 {[%clk 0:01:45]}  Qa6 {[%clk 0:01:13]} 15. b4 {[%clk 0:01:31]}  Ba4 {[%clk 0:00:44]} 16. Qb2 {[%clk 0:01:16]}  b5 {[%clk 0:00:40]} 17. Nd2 {[%clk 0:01:01]}  Nd7 {[%clk 0:00:33]} 18. O-O {[%clk 0:00:58]}  N7f6 {[%clk 0:00:29]} 19. Rac1 {[%clk 0:00:51]}  Qb6 {[%clk 0:00:29]} 20. a3 {[%clk 0:00:45]}  a6 {[%clk 0:00:25]} 21. Bh4 {[%clk 0:00:39]}  h6 {[%clk 0:00:25]} 22. N2f3 {[%clk 0:00:36]}  Nf4 {[%clk 0:00:21]} 23. Ne5 {[%clk 0:00:30]}  Nxe2+ {[%clk 0:00:17]} 24. Qxe2 {[%clk 0:00:30]}  Rc8 {[%clk 0:00:17]} 25. Qf3 {[%clk 0:00:27]}  Nd5 {[%clk 0:00:16]} 26. Bxe7 {[%clk 0:00:20]}  Nxe7 {[%clk 0:00:17]} 27. Nd7 {[%clk 0:00:21]}  Qc7 {[%clk 0:00:15]} 28. Nxf8 {[%clk 0:00:20]}  Rxf8 {[%clk 0:00:15]} 29. Rfe1 {[%clk 0:00:20]}  Nd5 {[%clk 0:00:16]} 30. Qg3 {[%clk 0:00:20]}  Qc4 {[%clk 0:00:12]} 31. Nf3 {[%clk 0:00:19]}  Rc8 {[%clk 0:00:12]} 32. Ne5 {[%clk 0:00:19]}  Qc7 {[%clk 0:00:12]} 33. h3 {[%clk 0:00:15]}  Bb3 {[%clk 0:00:12]} 34. Kh2 {[%clk 0:00:14]}  Nf6 {[%clk 0:00:12]} 35. Nf3 {[%clk 0:00:12]}  Qb7 {[%clk 0:00:10]} 36. Nd4 {[%clk 0:00:12]}  Bd5 {[%clk 0:00:11]} 37. f3 {[%clk 0:00:12]}  Qb6 {[%clk 0:00:10]} 38. Qe5 {[%clk 0:00:12]}  a5 {[%clk 0:00:10]} 39. Kh1 {[%clk 0:00:08]}  a4 {[%clk 0:00:10]} 40. Qe3 {[%clk 0:00:07]}  Qa6 {[%clk 0:00:08]} 41. Qe2 {[%clk 0:00:07]}  Bc4 {[%clk 0:00:07]} 42. Qf2 {[%clk 0:00:07]}  Qb7 {[%clk 0:00:07]} 43. Rcd1 {[%clk 0:00:07]}  Nd5 {[%clk 0:00:06]} 44. Rc1 {[%clk 0:00:06]}  Nf4 {[%clk 0:00:06]} 45. Re3 {[%clk 0:00:03]}  Nd3 {[%clk 0:00:06]} 46. Rxd3 {[%clk 0:00:03]}  Bxd3 {[%clk 0:00:07]} 47. Qe3 {[%clk 0:00:03]}  Bg6 {[%clk 0:00:07]} 48. Kh2 {[%clk 0:00:03]}  Rc4 {[%clk 0:00:07]} 49. f4 {[%clk 0:00:04]}  Qc7 {[%clk 0:00:06]} 50. Qe5 {[%clk 0:00:03]}  Qc8 {[%clk 0:00:06]} 51. Qe3 {[%clk 0:00:04]}  h5 {[%clk 0:00:06]} 52. g3 {[%clk 0:00:04]}  Qc7 {[%clk 0:00:05]} 53. Nf3 {[%clk 0:00:04]}  Bf5 {[%clk 0:00:03]} 54. Ne5 {[%clk 0:00:04]}  Re4 {[%clk 0:00:03]} 55. Qf2 {[%clk 0:00:04]}  Qd6 {[%clk 0:00:02]} 56. Rc2 {[%clk 0:00:03]}  Qd5 {[%clk 0:00:03]} 57. Rd2 {[%clk 0:00:04]}  Qb3 {[%clk 0:00:03]} 58. Rd8+ {[%clk 0:00:04]}  Kh7 {[%clk 0:00:03]} 59. Rd2 {[%clk 0:00:04]}  Qxa3 {[%clk 0:00:03]} 60. Nxf7 {[%clk 0:00:04]}  Qxc3 {[%clk 0:00:03]} 61. Ng5+ {[%clk 0:00:04]}  Kg6 {[%clk 0:00:03]} 62. Nxe4 {[%clk 0:00:05]}  Bxe4 {[%clk 0:00:04]} 63. Re2 {[%clk 0:00:05]}  Bf5 {[%clk 0:00:04]} 64. Qg2 {[%clk 0:00:05]}  Qc7 {[%clk 0:00:03]} 65. Rf2 {[%clk 0:00:05]}  Kh7 {[%clk 0:00:02]} 66. g4 {[%clk 0:00:05]}  Bg6 {[%clk 0:00:02]} 67. Qg3 {[%clk 0:00:05]}  a3 {[%clk 0:00:02]} 68. f5 {[%clk 0:00:05]}  Qxg3+ {[%clk 0:00:01]} 69. Kxg3 {[%clk 0:00:06]}  exf5 {[%clk 0:00:02]} 70. gxf5 {[%clk 0:00:06]}  Bf7 {[%clk 0:00:02]} 71. Rf1 {[%clk 0:00:05]}  Bc4 {[%clk 0:00:02]} 72. Ra1 {[%clk 0:00:04]}  a2 {[%clk 0:00:02]} 73. h4 {[%clk 0:00:05]}  Kg8 {[%clk 0:00:02]} 74. Kf4 {[%clk 0:00:05]}  Kf7 {[%clk 0:00:02]} 75. Ke5 {[%clk 0:00:05]}  Ke7 {[%clk 0:00:02]} 76. Rg1 {[%clk 0:00:05]}  Kf7 {[%clk 0:00:02]} 77. Ra1 {[%clk 0:00:05]}  Ke7 {[%clk 0:00:02]} 78. Rc1 {[%clk 0:00:05]}  Kf7 {[%clk 0:00:03]} 79. Re1 {[%clk 0:00:05]}  Ke7 {[%clk 0:00:03]} 80. Kf4+ {[%clk 0:00:05]}  Kf6 {[%clk 0:00:03]} 81. Ra1 {[%clk 0:00:05]}  Ke7 {[%clk 0:00:03]} 82. Rg1 {[%clk 0:00:05]}  Kf7 {[%clk 0:00:03]} 83. Ra1 {[%clk 0:00:05]}  Kf6 {[%clk 0:00:03]} 84. Rd1 {[%clk 0:00:05]}  Kf7 {[%clk 0:00:03]} 85. Kg5 {[%clk 0:00:05]}  Ke7 {[%clk 0:00:03]} 86. Rc1 {[%clk 0:00:04]}  Bd3 {[%clk 0:00:03]} 87. Ra1 {[%clk 0:00:03]}  Bb1 {[%clk 0:00:03]} 88. Kxh5 {[%clk 0:00:04]}  Kf6 {[%clk 0:00:04]} 89. Kg4 {[%clk 0:00:04]}  Bxf5+ {[%clk 0:00:02]} 90. Kf4 {[%clk 0:00:04]}  Bb1 {[%clk 0:00:03]} 91. Kg4 {[%clk 0:00:04]}  Kg6 {[%clk 0:00:03]} 92. Kg3 {[%clk 0:00:03]}  Kh5 {[%clk 0:00:04]} 93. Kh3 {[%clk 0:00:04]}  g5 {[%clk 0:00:04]} 94. hxg5 {[%clk 0:00:04]}  Kxg5 {[%clk 0:00:05]} 95. Kg3 {[%clk 0:00:04]}  Kf5 {[%clk 0:00:06]} 96. Kf3 {[%clk 0:00:05]}  Ke5 {[%clk 0:00:07]} 97. Ke3 {[%clk 0:00:05]}  Kd5 {[%clk 0:00:08]} 98. Kd2 {[%clk 0:00:04]}  Kc4 {[%clk 0:00:09]} 99. Kc1 {[%clk 0:00:04]}  Kxb4 {[%clk 0:00:10]} 100. Kb2 {[%clk 0:00:04]}  Kc4 {[%clk 0:00:10]} 101. Rxa2 {[%clk 0:00:04]}  Bxa2 {[%clk 0:00:10]} 102. Kxa2 {[%clk 0:00:05]}  Kc3 {[%clk 0:00:10]} 0-1


[Site "https://www.chess.com"]

[Event "Titled Tuesday Blitz April 19 Late 2022"]
[White "Karttunen, Mika"]
[Black "Wachinger, Guenther"]
[WhiteFideId "502081"]
[BlackFideId "4604261"]
[WhiteElo "2343"]
[BlackElo "2212"]
[Result "0-1"]
[Round "06"]
[TimeControl "180+1"]
[Date "2022.04.19"]
[WhiteClock "0:00:08"]
[BlackClock "0:00:45"]

1. c4 {[%clk 0:03:00]}  e6 {[%clk 0:02:41]} 2. Nc3 {[%clk 0:02:59]}  d5 {[%clk 0:02:38]} 3. e3 {[%clk 0:02:53]}  Nf6 {[%clk 0:02:35]} 4. Nf3 {[%clk 0:02:48]}  Be7 {[%clk 0:02:29]} 5. b3 {[%clk 0:02:46]}  O-O {[%clk 0:02:29]} 6. Bb2 {[%clk 0:02:46]}  c5 {[%clk 0:02:29]} 7. cxd5 {[%clk 0:02:28]}  exd5 {[%clk 0:02:28]} 8. d4 {[%clk 0:02:25]}  b6 {[%clk 0:02:28]} 9. Bd3 {[%clk 0:02:23]}  Nc6 {[%clk 0:02:25]} 10. O-O {[%clk 0:02:22]}  cxd4 {[%clk 0:02:22]} 11. Nxd4 {[%clk 0:02:17]}  Nxd4 {[%clk 0:02:22]} 12. exd4 {[%clk 0:02:17]}  Be6 {[%clk 0:02:22]} 13. h3 {[%clk 0:02:16]}  Bd6 {[%clk 0:02:20]} 14. Qf3 {[%clk 0:02:15]}  a6 {[%clk 0:02:18]} 15. Ne2 {[%clk 0:02:02]}  Bc7 {[%clk 0:02:18]} 16. Ba3 {[%clk 0:01:57]}  Re8 {[%clk 0:02:17]} 17. Ng3 {[%clk 0:01:57]}  Bd6 {[%clk 0:02:10]} 18. Bxd6 {[%clk 0:01:43]}  Qxd6 {[%clk 0:02:11]} 19. Rfe1 {[%clk 0:01:43]}  Bd7 {[%clk 0:02:04]} 20. Rxe8+ {[%clk 0:01:41]}  Rxe8 {[%clk 0:02:01]} 21. Bxa6 {[%clk 0:01:35]}  b5 {[%clk 0:02:02]} 22. Bxb5 {[%clk 0:01:14]}  Bxb5 {[%clk 0:02:03]} 23. Nf5 {[%clk 0:01:10]}  Qe6 {[%clk 0:02:00]} 24. a4 {[%clk 0:01:06]}  Be2 {[%clk 0:02:00]} 25. Qf4 {[%clk 0:01:06]}  Nh5 {[%clk 0:01:32]} 26. Qg5 {[%clk 0:01:03]}  Qf6 {[%clk 0:01:32]} 27. Qxf6 {[%clk 0:00:51]}  Nxf6 {[%clk 0:01:33]} 28. b4 {[%clk 0:00:48]}  Ra8 {[%clk 0:01:34]} 29. Nd6 {[%clk 0:00:38]}  Ne4 {[%clk 0:01:32]} 30. Nb7 {[%clk 0:00:36]}  Rb8 {[%clk 0:01:23]} 31. Rc1 {[%clk 0:00:35]}  Bc4 {[%clk 0:01:17]} 32. f3 {[%clk 0:00:23]}  Rxb7 {[%clk 0:01:12]} 33. fxe4 {[%clk 0:00:23]}  Rxb4 {[%clk 0:01:13]} 34. exd5 {[%clk 0:00:24]}  Kf8 {[%clk 0:01:12]} 35. a5 {[%clk 0:00:23]}  Bxd5 {[%clk 0:01:10]} 36. Rc5 {[%clk 0:00:20]}  Rxd4 {[%clk 0:01:08]} 37. a6 {[%clk 0:00:21]}  Be4 {[%clk 0:00:53]} 38. Ra5 {[%clk 0:00:12]}  f5 {[%clk 0:00:47]} 39. a7 {[%clk 0:00:11]}  Rd8 {[%clk 0:00:48]} 40. Kf2 {[%clk 0:00:09]}  Ke7 {[%clk 0:00:47]} 41. g4 {[%clk 0:00:09]}  g6 {[%clk 0:00:47]} 42. g5 {[%clk 0:00:09]}  Ra8 {[%clk 0:00:45]} 43. Ke3 {[%clk 0:00:08]}  Kd6 {[%clk 0:00:45]} 44. Kd4 {[%clk 0:00:08]}  Kc6 {[%clk 0:00:46]} 45. h4 {[%clk 0:00:08]}  Kb6 {[%clk 0:00:45]} 0-1


[Site "https://www.chess.com"]

[Event "Titled Tuesday Blitz April 19 Late 2022"]
[White "Keymer, Vincent"]
[Black "Kamsky, Gata"]
[WhiteFideId "12940690"]
[BlackFideId "2000024"]
[WhiteElo "2557"]
[BlackElo "2645"]
[Result "0-1"]
[Round "06"]
[TimeControl "180+1"]
[Date "2022.04.19"]
[WhiteClock "0:00:07"]
[BlackClock "0:00:23"]

1. d4 {[%clk 0:03:00]}  d5 {[%clk 0:02:59]} 2. c4 {[%clk 0:03:00]}  c6 {[%clk 0:03:00]} 3. Nf3 {[%clk 0:03:00]}  Nf6 {[%clk 0:03:00]} 4. e3 {[%clk 0:02:59]}  Bg4 {[%clk 0:02:58]} 5. h3 {[%clk 0:02:48]}  Bxf3 {[%clk 0:02:58]} 6. Qxf3 {[%clk 0:02:49]}  e6 {[%clk 0:02:58]} 7. a3 {[%clk 0:02:43]}  Nbd7 {[%clk 0:02:50]} 8. Nc3 {[%clk 0:02:43]}  g6 {[%clk 0:02:47]} 9. Bd3 {[%clk 0:02:32]}  Bg7 {[%clk 0:02:46]} 10. O-O {[%clk 0:02:32]}  O-O {[%clk 0:02:45]} 11. Rd1 {[%clk 0:02:27]}  a5 {[%clk 0:02:44]} 12. b3 {[%clk 0:02:22]}  a4 {[%clk 0:02:32]} 13. b4 {[%clk 0:02:01]}  dxc4 {[%clk 0:02:23]} 14. Bxc4 {[%clk 0:02:00]}  e5 {[%clk 0:02:22]} 15. Bb2 {[%clk 0:01:48]}  exd4 {[%clk 0:02:19]} 16. Rxd4 {[%clk 0:01:37]}  Ne5 {[%clk 0:02:16]} 17. Qe2 {[%clk 0:01:34]}  Qe7 {[%clk 0:02:14]} 18. Ba2 {[%clk 0:01:33]}  b5 {[%clk 0:01:44]} 19. Rad1 {[%clk 0:01:29]}  Rad8 {[%clk 0:01:43]} 20. R1d2 {[%clk 0:01:20]}  Rfe8 {[%clk 0:01:15]} 21. Qd1 {[%clk 0:01:16]}  Rxd4 {[%clk 0:01:13]} 22. Rxd4 {[%clk 0:01:17]}  Ned7 {[%clk 0:01:05]} 23. Ne4 {[%clk 0:01:09]}  Nb6 {[%clk 0:00:50]} 24. Nd6 {[%clk 0:00:55]}  Rf8 {[%clk 0:00:49]} 25. Nxf7 {[%clk 0:00:40]}  Nfd5 {[%clk 0:00:47]} 26. Rd2 {[%clk 0:00:11]}  Bxb2 {[%clk 0:00:43]} 27. Rxb2 {[%clk 0:00:05]}  Rxf7 {[%clk 0:00:43]} 28. e4 {[%clk 0:00:05]}  Qxe4 {[%clk 0:00:41]} 29. Re2 {[%clk 0:00:06]}  Qf4 {[%clk 0:00:39]} 30. Qa1 {[%clk 0:00:03]}  Qf6 {[%clk 0:00:38]} 31. Qe1 {[%clk 0:00:02]}  Kg7 {[%clk 0:00:34]} 32. Re6 {[%clk 0:00:02]}  Qc3 {[%clk 0:00:30]} 33. Qxc3+ {[%clk 0:00:01]}  Nxc3 {[%clk 0:00:30]} 34. Rxc6 {[%clk 0:00:02]}  Nxa2 {[%clk 0:00:30]} 35. Rxb6 {[%clk 0:00:02]}  Rf5 {[%clk 0:00:29]} 36. g4 {[%clk 0:00:01]}  Rd5 {[%clk 0:00:29]} 37. Rb7+ {[%clk 0:00:02]}  Kg8 {[%clk 0:00:28]} 38. Rb8+ {[%clk 0:00:03]}  Kf7 {[%clk 0:00:28]} 39. Rb7+ {[%clk 0:00:04]}  Ke6 {[%clk 0:00:28]} 40. Rxh7 {[%clk 0:00:04]}  Rd3 {[%clk 0:00:28]} 41. Rb7 {[%clk 0:00:04]}  Rxa3 {[%clk 0:00:28]} 42. Rxb5 {[%clk 0:00:05]}  Rb3 {[%clk 0:00:28]} 43. Rb6+ {[%clk 0:00:05]}  Ke5 {[%clk 0:00:28]} 44. b5 {[%clk 0:00:05]}  Nc3 {[%clk 0:00:27]} 45. Rxg6 {[%clk 0:00:05]}  Rxb5 {[%clk 0:00:27]} 46. Ra6 {[%clk 0:00:05]}  Rb3 {[%clk 0:00:26]} 47. Kg2 {[%clk 0:00:05]}  a3 {[%clk 0:00:26]} 48. h4 {[%clk 0:00:06]}  a2 {[%clk 0:00:26]} 49. Ra5+ {[%clk 0:00:05]}  Kf4 {[%clk 0:00:26]} 50. h5 {[%clk 0:00:05]}  Rb1 {[%clk 0:00:25]} 51. Rf5+ {[%clk 0:00:02]}  Kxg4 {[%clk 0:00:25]} 52. Ra5 {[%clk 0:00:02]}  a1=Q {[%clk 0:00:25]} 53. Rxa1 {[%clk 0:00:03]}  Rxa1 {[%clk 0:00:24]} 54. f3+ {[%clk 0:00:04]}  Kxh5 {[%clk 0:00:24]} 55. Kf2 {[%clk 0:00:05]}  Kg5 {[%clk 0:00:24]} 56. Ke3 {[%clk 0:00:06]}  Ra4 {[%clk 0:00:23]} 57. Kd3 {[%clk 0:00:07]}  Nd5 {[%clk 0:00:23]} 0-1


[Site "https://www.chess.com"]

[Event "Titled Tuesday Blitz April 19 Late 2022"]
[White "Koelle, Tobias"]
[Black "Dauner, Benedikt"]
[WhiteFideId "16207378"]
[BlackFideId "16225899"]
[WhiteElo "2647"]
[BlackElo "2492"]
[Result "0-1"]
[Round "06"]
[TimeControl "180+1"]
[Date "2022.04.19"]
[WhiteClock "0:00:18"]
[BlackClock "0:00:15"]

1. Nf3 {[%clk 0:03:00]}  g6 {[%clk 0:02:59]} 2. d4 {[%clk 0:02:57]}  Bg7 {[%clk 0:03:00]} 3. c4 {[%clk 0:02:56]}  d6 {[%clk 0:02:59]} 4. Nc3 {[%clk 0:02:56]}  e5 {[%clk 0:02:57]} 5. e4 {[%clk 0:02:56]}  Nc6 {[%clk 0:02:54]} 6. d5 {[%clk 0:02:55]}  Nd4 {[%clk 0:02:52]} 7. Be3 {[%clk 0:02:55]}  Bg4 {[%clk 0:02:46]} 8. Be2 {[%clk 0:02:53]}  Bxf3 {[%clk 0:02:44]} 9. Bxf3 {[%clk 0:02:53]}  c5 {[%clk 0:02:43]} 10. dxc6 {[%clk 0:02:52]}  bxc6 {[%clk 0:02:43]} 11. O-O {[%clk 0:02:52]}  Ne7 {[%clk 0:02:42]} 12. b4 {[%clk 0:02:44]}  O-O {[%clk 0:02:36]} 13. a4 {[%clk 0:02:40]}  a6 {[%clk 0:02:26]} 14. Rb1 {[%clk 0:02:37]}  Rb8 {[%clk 0:02:24]} 15. b5 {[%clk 0:02:30]}  axb5 {[%clk 0:02:22]} 16. axb5 {[%clk 0:02:30]}  cxb5 {[%clk 0:02:22]} 17. Nxb5 {[%clk 0:02:12]}  Nec6 {[%clk 0:02:20]} 18. g3 {[%clk 0:02:09]}  Qe7 {[%clk 0:02:09]} 19. Bg2 {[%clk 0:02:07]}  Rb7 {[%clk 0:01:58]} 20. Qd3 {[%clk 0:02:04]}  Rfb8 {[%clk 0:01:56]} 21. h4 {[%clk 0:02:00]}  Qd7 {[%clk 0:01:53]} 22. Rfd1 {[%clk 0:01:47]}  Nxb5 {[%clk 0:01:49]} 23. cxb5 {[%clk 0:01:46]}  Nd4 {[%clk 0:01:48]} 24. Bxd4 {[%clk 0:01:47]}  exd4 {[%clk 0:01:48]} 25. Bf1 {[%clk 0:01:47]}  Rc7 {[%clk 0:01:34]} 26. b6 {[%clk 0:01:40]}  Rc3 {[%clk 0:01:32]} 27. Qa6 {[%clk 0:01:38]}  Be5 {[%clk 0:01:25]} 28. Qa7 {[%clk 0:01:22]}  Rb7 {[%clk 0:01:21]} 29. Qa8+ {[%clk 0:01:20]}  Kg7 {[%clk 0:01:14]} 30. Rd3 {[%clk 0:01:13]}  Qc6 {[%clk 0:00:48]} 31. Qa6 {[%clk 0:00:38]}  h5 {[%clk 0:00:44]} 32. Qb5 {[%clk 0:00:29]}  Qc8 {[%clk 0:00:17]} 33. Qd5 {[%clk 0:00:24]}  Qb8 {[%clk 0:00:16]} 34. Qb5 {[%clk 0:00:18]}  Rc5 {[%clk 0:00:16]} 35. Qb2 {[%clk 0:00:17]}  Rc3 {[%clk 0:00:14]} 36. Qb4 {[%clk 0:00:15]}  Rc5 {[%clk 0:00:13]} 37. Rbb3 {[%clk 0:00:14]}  Rc6 {[%clk 0:00:13]} 38. Qd2 {[%clk 0:00:10]}  Rcxb6 {[%clk 0:00:12]} 39. Rxb6 {[%clk 0:00:11]}  Rxb6 {[%clk 0:00:13]} 40. Kg2 {[%clk 0:00:11]}  Rb2 {[%clk 0:00:13]} 41. Qd1 {[%clk 0:00:11]}  Qb4 {[%clk 0:00:12]} 42. Qf3 {[%clk 0:00:09]}  Qe1 {[%clk 0:00:11]} 43. Rd1 {[%clk 0:00:05]}  Rxf2+ {[%clk 0:00:08]} 44. Qxf2 {[%clk 0:00:06]}  Qxd1 {[%clk 0:00:08]} 45. Qf3 {[%clk 0:00:06]}  Qxf3+ {[%clk 0:00:07]} 46. Kxf3 {[%clk 0:00:07]}  Kf6 {[%clk 0:00:07]} 47. Bc4 {[%clk 0:00:07]}  Ke7 {[%clk 0:00:08]} 48. Bd3 {[%clk 0:00:04]}  f6 {[%clk 0:00:08]} 49. Bc4 {[%clk 0:00:05]}  g5 {[%clk 0:00:08]} 50. Bd3 {[%clk 0:00:05]}  Kf7 {[%clk 0:00:07]} 51. Bc4+ {[%clk 0:00:05]}  Kg6 {[%clk 0:00:07]} 52. Kg2 {[%clk 0:00:05]}  Kg7 {[%clk 0:00:05]} 53. Kf3 {[%clk 0:00:05]}  Kf8 {[%clk 0:00:05]} 54. Kg2 {[%clk 0:00:05]}  Ke7 {[%clk 0:00:06]} 55. Kf3 {[%clk 0:00:05]}  Kf8 {[%clk 0:00:05]} 56. Kg2 {[%clk 0:00:04]}  gxh4 {[%clk 0:00:06]} 57. gxh4 {[%clk 0:00:05]}  Kg7 {[%clk 0:00:07]} 58. Kf3 {[%clk 0:00:05]}  Kh6 {[%clk 0:00:07]} 59. Kg2 {[%clk 0:00:04]}  Bf4 {[%clk 0:00:07]} 60. Kf3 {[%clk 0:00:05]}  Be3 {[%clk 0:00:07]} 61. Kg3 {[%clk 0:00:05]}  Bd2 {[%clk 0:00:07]} 62. Kf3 {[%clk 0:00:05]}  Be1 {[%clk 0:00:08]} 63. Kf4 {[%clk 0:00:03]}  Bxh4 {[%clk 0:00:07]} 64. Kf5 {[%clk 0:00:04]}  Kg7 {[%clk 0:00:07]} 65. Be2 {[%clk 0:00:04]}  Bg3 {[%clk 0:00:06]} 66. Bxh5 {[%clk 0:00:04]}  d3 {[%clk 0:00:07]} 67. Bd1 {[%clk 0:00:03]}  d2 {[%clk 0:00:07]} 68. Kg4 {[%clk 0:00:04]}  Be5 {[%clk 0:00:07]} 69. Kf3 {[%clk 0:00:05]}  Bc3 {[%clk 0:00:07]} 70. Ke2 {[%clk 0:00:04]}  Kg6 {[%clk 0:00:07]} 71. Kd3 {[%clk 0:00:05]}  Ba5 {[%clk 0:00:07]} 72. Bf3 {[%clk 0:00:06]}  Kg5 {[%clk 0:00:07]} 73. Ke2 {[%clk 0:00:06]}  Kf4 {[%clk 0:00:07]} 74. Bh1 {[%clk 0:00:06]}  Kg3 {[%clk 0:00:07]} 75. Kd1 {[%clk 0:00:05]}  Kf2 {[%clk 0:00:07]} 76. Kc2 {[%clk 0:00:03]}  Ke2 {[%clk 0:00:06]} 77. Bg2 {[%clk 0:00:01]}  d1=Q+ {[%clk 0:00:05]} 78. Kb2 {[%clk 0:00:02]}  Qd2+ {[%clk 0:00:05]} 79. Kb3 {[%clk 0:00:02]}  Qe3+ {[%clk 0:00:05]} 80. Ka2 {[%clk 0:00:03]}  Bb6 {[%clk 0:00:05]} 81. Bh1 {[%clk 0:00:03]}  Qg1 {[%clk 0:00:05]} 82. e5 {[%clk 0:00:03]}  Qxh1 {[%clk 0:00:05]} 83. e6 {[%clk 0:00:04]}  Qd5+ {[%clk 0:00:05]} 84. Ka3 {[%clk 0:00:04]}  Qxe6 {[%clk 0:00:06]} 85. Ka4 {[%clk 0:00:05]}  Bf2 {[%clk 0:00:06]} 86. Kb5 {[%clk 0:00:06]}  Be1 {[%clk 0:00:06]} 87. Kc6 {[%clk 0:00:06]}  Qc4+ {[%clk 0:00:06]} 88. Kd7 {[%clk 0:00:07]}  Qe4 {[%clk 0:00:07]} 89. Kd8 {[%clk 0:00:07]}  f5 {[%clk 0:00:07]} 90. Kc7 {[%clk 0:00:08]}  d5 {[%clk 0:00:08]} 91. Kd7 {[%clk 0:00:09]}  d4 {[%clk 0:00:09]} 92. Kc7 {[%clk 0:00:09]}  d3 {[%clk 0:00:10]} 93. Kd7 {[%clk 0:00:10]}  d2 {[%clk 0:00:10]} 94. Kc7 {[%clk 0:00:11]}  f4 {[%clk 0:00:11]} 95. Kc8 {[%clk 0:00:12]}  d1=Q {[%clk 0:00:11]} 96. Kc7 {[%clk 0:00:13]}  f3 {[%clk 0:00:12]} 97. Kc8 {[%clk 0:00:14]}  f2 {[%clk 0:00:13]} 98. Kc7 {[%clk 0:00:15]}  Qed3 {[%clk 0:00:13]} 99. Kc8 {[%clk 0:00:16]}  f1=Q {[%clk 0:00:13]} 100. Kc7 {[%clk 0:00:17]}  Q3c2+ {[%clk 0:00:13]} 101. Kb8 {[%clk 0:00:17]}  Qdb1+ {[%clk 0:00:14]} 102. Ka7 {[%clk 0:00:18]}  Qca2# {[%clk 0:00:15]} 0-1


[Site "https://www.chess.com"]

[Event "Titled Tuesday Blitz April 19 Late 2022"]
[White "Kostiukov, Alexandr"]
[Black "Skliarov, Viktor"]
[WhiteFideId "14108100"]
[BlackFideId "14106736"]
[WhiteElo "2202"]
[BlackElo "2229"]
[Result "1/2-1/2"]
[Round "06"]
[TimeControl "180+1"]
[Date "2022.04.19"]
[WhiteClock "0:00:46"]
[BlackClock "0:00:24"]

1. g3 {[%clk 0:03:00]}  g6 {[%clk 0:02:57]} 2. Bg2 {[%clk 0:03:00]}  Bg7 {[%clk 0:02:55]} 3. c4 {[%clk 0:03:01]}  Nf6 {[%clk 0:02:56]} 4. Nf3 {[%clk 0:03:02]}  O-O {[%clk 0:02:56]} 5. O-O {[%clk 0:03:03]}  c6 {[%clk 0:02:55]} 6. d4 {[%clk 0:03:04]}  d5 {[%clk 0:02:55]} 7. cxd5 {[%clk 0:03:04]}  cxd5 {[%clk 0:02:56]} 8. Nc3 {[%clk 0:03:04]}  Ne4 {[%clk 0:02:56]} 9. Bf4 {[%clk 0:03:03]}  Nxc3 {[%clk 0:02:56]} 10. bxc3 {[%clk 0:03:03]}  Nc6 {[%clk 0:02:57]} 11. Ne5 {[%clk 0:03:02]}  Nxe5 {[%clk 0:02:56]} 12. dxe5 {[%clk 0:02:59]}  Be6 {[%clk 0:02:55]} 13. Rb1 {[%clk 0:02:39]}  Rb8 {[%clk 0:02:41]} 14. Qa4 {[%clk 0:02:35]}  a6 {[%clk 0:02:37]} 15. Rfd1 {[%clk 0:02:31]}  Qc7 {[%clk 0:02:31]} 16. Qb4 {[%clk 0:02:16]}  Bxe5 {[%clk 0:01:57]} 17. Bxe5 {[%clk 0:02:11]}  Qxe5 {[%clk 0:01:58]} 18. e3 {[%clk 0:02:00]}  Rfe8 {[%clk 0:01:53]} 19. Rd4 {[%clk 0:01:53]}  b5 {[%clk 0:01:29]} 20. Rbd1 {[%clk 0:01:49]}  Rbc8 {[%clk 0:01:26]} 21. a4 {[%clk 0:01:36]}  Rc4 {[%clk 0:01:01]} 22. Rxc4 {[%clk 0:01:27]}  bxc4 {[%clk 0:00:47]} 23. Qa5 {[%clk 0:01:16]}  Rb8 {[%clk 0:00:47]} 24. Bxd5 {[%clk 0:01:11]}  Bxd5 {[%clk 0:00:47]} 25. Rxd5 {[%clk 0:01:04]}  Rb1+ {[%clk 0:00:47]} 26. Kg2 {[%clk 0:01:02]}  Qe4+ {[%clk 0:00:48]} 27. Kh3 {[%clk 0:01:02]}  Rg1 {[%clk 0:00:42]} 28. Rd8+ {[%clk 0:00:57]}  Kg7 {[%clk 0:00:42]} 29. Qd5 {[%clk 0:00:55]}  Qxd5 {[%clk 0:00:22]} 30. Rxd5 {[%clk 0:00:56]}  Rc1 {[%clk 0:00:22]} 31. Ra5 {[%clk 0:00:52]}  Rxc3 {[%clk 0:00:22]} 32. Rxa6 {[%clk 0:00:52]}  Ra3 {[%clk 0:00:22]} 33. a5 {[%clk 0:00:51]}  c3 {[%clk 0:00:22]} 34. Rc6 {[%clk 0:00:50]}  Rxa5 {[%clk 0:00:21]} 35. Rxc3 {[%clk 0:00:49]}  Ra2 {[%clk 0:00:22]} 36. Kg2 {[%clk 0:00:48]}  e6 {[%clk 0:00:23]} 37. Rd3 {[%clk 0:00:48]}  h5 {[%clk 0:00:23]} 38. h4 {[%clk 0:00:47]}  Kf6 {[%clk 0:00:23]} 39. Rd4 {[%clk 0:00:45]}  Rb2 {[%clk 0:00:23]} 40. Rd3 {[%clk 0:00:45]}  Ra2 {[%clk 0:00:23]} 41. Rc3 {[%clk 0:00:45]}  Rb2 {[%clk 0:00:24]} 42. Rd3 {[%clk 0:00:46]}  Ra2 {[%clk 0:00:24]} 1/2-1/2


[Site "https://www.chess.com"]